bitfinex-derivatives/quotes_ETHF0:USTF0_20241013
["timestamp","ask_amount","ask_price","bid_price","bid_amount"]
[1728788215084,3.2078,2470.6,2470.5,1.45370043]
[1728788215681,3.2078,2470.6,2470.5,1.45369956]
[1728788216082,0.772,2470.7,2470.5,1.45369956]
[1728788216283,3.2078,2470.6,2470.5,0.40483]
[1728788216583,3.2078,2470.6,2470.5,1.43657401]
[1728788216791,3.6136,2470.6,2470.5,1.43657401]
[1728788218189,0.4058,2470.6,2470.5,1.43657401]
[1728788218492,3.6136,2470.6,2470.5,1.43657401]
[1728788218989,0.4058,2470.6,2470.5,1.43657401]
[1728788219189,3.6136,2470.6,2470.5,1.43657401]
[1728788219991,0.4058,2470.6,2470.5,1.76547122]
[1728788220190,3.6136,2470.6,2470.5,1.76547122]
[1728788220596,3.6136,2470.6,2470.5,1.96799605]
[1728788221895,3.6136,2470.6,2470.5,1.51252509]
[1728788222097,3.6136,2470.6,2470.5,1.96803448]
[1728788223593,0.4058,2470.6,2470.5,1.96803448]
[1728788223792,3.6136,2470.6,2470.5,1.96803448]
[1728788225690,3.6136,2470.6,2470.5,1.63910288]
[1728788225899,3.6136,2470.6,2470.5,1.96821154]
[1728788226585,3.6136,2470.6,2470.5,1.63910866]
[1728788226785,3.6136,2470.6,2470.5,1.76568691]
[1728788226995,0.4058,2470.6,2470.5,1.96821212]
[1728788227291,3.6136,2470.6,2470.5,1.96821212]
[1728788227486,3.6136,2470.6,2470.5,1.76568691]
[1728788228088,0.4058,2470.6,2470.5,1.43657825]
[1728788228292,3.6136,2470.6,2470.5,1.43657825]
[1728788229697,3.6136,2470.6,2470.5,1.76578962]
[1728788229993,0.4058,2470.6,2470.5,1.43657839]
[1728788230194,3.6136,2470.6,2470.5,1.43657839]
[1728788230398,3.6136,2470.6,2470.5,1.76582716]
[1728788231996,0.4058,2470.6,2470.5,1.76582716]
[1728788232195,3.6136,2470.6,2470.5,1.76582716]
[1728788232999,0.4058,2470.6,2470.5,1.76582716]
[1728788233194,0.4058,2470.6,2470.5,1.43657839]
[1728788233395,3.6136,2470.6,2470.5,1.43657839]
[1728788235097,3.6136,2470.6,2470.5,1.7591794]
[1728788235802,3.6136,2470.6,2470.5,1.96170407]
[1728788236304,3.6136,2470.6,2470.5,2.87284315]
[1728788236796,3.6136,2470.6,2470.5,2.46801315]
[1728788237398,3.6136,2470.6,2470.5,2.46801125]
[1728788237605,3.6136,2470.6,2470.5,4.40734443]
[1728788238701,3.6136,2470.6,2470.5,4.4073841]
[1728788239202,3.6136,2470.6,2470.5,3.89096864]
[1728788241196,3.6136,2470.6,2470.5,3.884326]
[1728788241403,3.6136,2470.6,2470.5,3.37801692]
[1728788241599,3.6136,2470.6,2470.5,4.39063176]
[1728788242808,0.4058,2470.6,2470.5,4.39063177]
[1728788243315,3.6136,2470.6,2470.5,3.36679596]
[1728788243612,3.6136,2470.6,2470.5,3.56931884]
[1728788244309,3.6136,2470.6,2470.5,3.36679596]
[1728788244809,3.6136,2470.6,2470.5,3.2402192]
[1728788245010,3.6136,2470.6,2470.5,3.36679621]
[1728788245403,3.2078,2470.6,2470.5,9.23110118]
[1728788245603,3.2078,2470.9,2470.5,16.37920096]
[1728788245805,3.2078,2470.9,2470.8,1.71478]
[1728788246107,3.2078,2470.9,2470.8,3.26526916]
[1728788247814,3.2078,2470.9,2470.8,7.31246916]
[1728788248011,3.2078,2470.9,2470.8,3.26178826]
[1728788248515,3.2078,2470.9,2470.8,3.13521125]
[1728788248708,3.2078,2470.9,2470.8,3.26177376]
[1728788249423,3.2078,2470.9,2470.8,1.84134251]
[1728788250327,3.2078,2470.9,2470.8,2.15552002]
[1728788250527,1.2217,2471.1,2470.8,2.15552002]
[1728788250723,1.2217,2471.1,2471.0,1.31]
[1728788250925,4.4295,2471.1,2471.0,1.31]
[1728788255532,1.2217,2471.1,2471.0,1.31]
[1728788255830,4.4295,2471.1,2471.0,1.31]
[1728788261133,4.83423,2471.1,2471.0,1.31]
[1728788261433,4.4295,2471.1,2471.0,1.31]
[1728788264935,1.2217,2471.1,2471.0,1.31]
[1728788265128,4.4295,2471.1,2471.0,1.31]
[1728788268934,5.7395,2471.1,2471.0,1.31]
[1728788271241,5.7395,2471.1,2470.7,1.58790705]
[1728788271441,1.71477,2470.9,2470.6,2.89790705]
[1728788271635,0.4164,2470.8,2470.7,0.1265667]
[1728788271832,0.8072,2470.8,2470.6,1.31]
[1728788272142,0.3974,2470.7,2470.5,0.40482]
[1728788272335,0.3974,2470.7,2470.6,1.43656763]
[1728788272945,0.3974,2470.7,2470.6,1.75042382]
[1728788274535,0.3974,2470.7,2470.6,1.75042302]
[1728788278837,0.3974,2470.7,2470.6,4.7575039]
[1728788280244,0.3974,2470.7,2470.6,4.44364771]
[1728788280443,0.3974,2470.7,2470.6,4.31708088]
[1728788283442,0.3974,2470.7,2470.6,4.44364768]
[1728788284247,0.3974,2470.7,2470.6,4.31708088]
[1728788284445,0.3974,2470.7,2470.6,4.44364762]
[1728788284647,0.3974,2470.7,2470.6,2.85574057]
[1728788284943,0.3974,2470.7,2470.6,2.85682193]
[1728788286243,0.3974,2470.7,2470.6,4.97798213]
[1728788286750,0.3974,2470.7,2470.6,1.43656674]
[1728788287047,0.3974,2470.7,2470.6,1.84138674]
[1728788287455,0.3974,2470.7,2470.6,3.26191193]
[1728788287951,0.3974,2470.7,2470.6,1.84138556]
[1728788288340,0.3974,2470.7,2470.6,4.78791473]
[1728788289651,0.3974,2470.7,2470.6,4.38336746]
[1728788290044,0.3974,2470.7,2470.6,8.43056746]
[1728788290246,0.3974,2470.7,2470.6,8.83538746]
[1728788290446,0.3974,2470.7,2470.6,10.49892259]
[1728788290850,0.3974,2470.7,2470.6,10.09410259]
[1728788291150,0.3974,2470.7,2470.6,5.97360259]
[1728788291546,0.3974,2470.7,2470.6,5.97360256]
[1728788293746,0.3974,2470.7,2470.6,9.34677415]
[1728788294452,0.3974,2470.7,2470.6,9.75191678]
[1728788294653,0.3974,2470.7,2470.6,8.93470849]
[1728788294854,0.3974,2470.7,2470.6,9.75218399]
[1728788295053,0.3974,2470.7,2470.6,9.24910823]
[1728788295353,0.3974,2470.7,2470.6,7.63102322]
[1728788295543,0.3974,2470.7,2470.6,8.44104185]
[1728788297257,0.3974,2470.7,2470.6,8.69417263]
[1728788297752,0.3974,2470.7,2470.6,8.44104185]
[1728788298151,0.3974,2470.7,2470.6,8.69417272]
[1728788298755,0.3974,2470.7,2470.6,7.29449645]
[1728788298948,0.3974,2470.7,2470.6,7.86616716]
[1728788299152,0.3974,2470.7,2470.6,8.67618562]
[1728788299352,0.3974,2470.7,2470.6,8.67670577]
[1728788300657,0.3974,2470.7,2470.6,12.72390577]
[1728788302361,0.3974,2470.7,2470.6,12.14170497]
[1728788302555,0.3974,2470.7,2470.6,12.47077078]
[1728788302853,0.3974,2470.7,2470.6,11.6607545]
[1728788303560,0.3974,2470.7,2470.6,10.86126501]
[1728788304161,0.3974,2470.7,2470.6,10.86138195]
[1728788305256,0.3974,2470.7,2470.6,13.50726249]
[1728788305659,0.8072,2470.8,2470.7,0.4048]
[1728788305959,0.8072,2470.8,2470.7,6.79040074]
[1728788306155,0.8072,2470.8,2470.7,6.91696]
[1728788306861,0.8072,2470.8,2470.7,8.22696]
[1728788308858,0.8072,2470.8,2470.7,4.85209857]
[1728788309754,0.8072,2470.8,2470.7,4.72553931]
[1728788309959,0.8072,2470.8,2470.7,4.85209756]
[1728788310462,0.8072,2470.8,2470.7,6.36035927]
[1728788312368,0.8072,2470.8,2470.7,5.95555927]
[1728788312760,0.8072,2470.8,2470.7,6.36035927]
[1728788313762,0.8072,2470.8,2470.7,6.36038703]
[1728788316768,0.8072,2470.8,2470.7,9.73000393]
[1728788317471,0.8072,2470.8,2470.7,8.22174222]
[1728788317670,0.8072,2470.8,2470.7,7.81694222]
[1728788319670,0.8072,2470.8,2470.7,8.22174222]
[1728788320470,0.8072,2470.8,2470.7,8.09518397]
[1728788320677,0.8072,2470.8,2470.7,8.22174307]
[1728788322562,0.8072,2470.8,2470.7,8.22169313]
[1728788322764,0.8072,2470.8,2470.7,7.81689313]
[1728788323168,0.8072,2470.8,2470.7,4.97771582]
[1728788323465,1.2306,2470.8,2470.7,4.97771582]
[1728788323865,1.2306,2470.8,2470.7,1.4365591]
[1728788324074,1.2306,2470.8,2470.7,2.8563323]
[1728788324271,1.2306,2470.8,2470.7,2.85633845]
[1728788325672,1.2306,2470.8,2470.7,5.42561842]
[1728788325874,1.2306,2470.8,2470.7,4.93355823]
[1728788327272,1.2306,2470.8,2470.7,5.42561541]
[1728788327674,1.2306,2470.8,2470.7,5.42566167]
[1728788327875,1.2306,2470.8,2470.7,4.93360449]
[1728788328071,1.2306,2470.8,2470.7,4.93369728]
[1728788328281,1.2306,2470.8,2470.7,4.93371429]
[1728788328575,1.2306,2470.8,2470.7,4.36482357]
[1728788329168,1.2306,2470.8,2470.7,5.42583138]
[1728788329364,1.2306,2470.8,2470.7,5.42583459]
[1728788329572,1.2306,2470.8,2470.7,5.42584776]
[1728788329972,1.2306,2470.8,2470.7,4.36482357]
[1728788330365,1.2306,2470.8,2470.7,5.42544211]
[1728788330570,1.2306,2470.8,2470.7,3.79048453]
[1728788331974,1.2306,2470.8,2470.7,8.63068896]
[1728788332171,1.2306,2470.8,2470.7,8.83319233]
[1728788332776,1.2306,2470.8,2470.7,8.52570575]
[1728788332982,1.2306,2470.8,2470.7,8.65190867]
[1728788337782,1.2306,2470.8,2470.7,8.65209838]
[1728788338877,1.2306,2470.8,2470.7,4.752178]
[1728788339988,1.2306,2470.8,2470.7,3.69143779]
[1728788340793,1.2306,2470.8,2470.7,4.62573186]
[1728788340977,1.2306,2470.8,2470.7,4.38604575]
[1728788341182,1.2306,2470.8,2470.7,5.19984744]
[1728788341378,1.2306,2470.8,2470.7,6.26035222]
[1728788342986,1.2306,2470.8,2470.7,4.36452104]
[1728788343296,1.2306,2470.8,2470.7,5.42473081]
[1728788343602,1.2306,2470.8,2470.7,4.58892759]
[1728788343792,1.2306,2470.8,2470.7,4.36404002]
[1728788344192,1.2306,2470.8,2470.7,4.36403773]
[1728788344392,1.2306,2470.8,2470.7,5.42427155]
[1728788345403,1.2306,2470.8,2470.7,5.42427369]
[1728788347097,1.2306,2470.8,2470.7,9.32207306]
[1728788347305,1.2306,2470.8,2470.7,8.94204114]
[1728788347503,1.2306,2470.8,2470.7,10.44963303]
[1728788347709,1.2306,2470.8,2470.7,10.95589129]
[1728788347898,1.2306,2470.8,2470.7,9.44829993]
[1728788350701,1.2306,2470.8,2470.7,5.19228855]
[1728788350901,1.2306,2470.8,2470.7,9.44686774]
[1728788351104,1.2306,2470.8,2470.7,9.44686808]
[1728788353211,1.2306,2470.8,2470.7,7.81271216]
[1728788354806,1.2306,2470.8,2470.7,7.68614726]
[1728788355001,1.2306,2470.8,2470.7,7.81271228]
[1728788355603,1.2306,2470.8,2470.7,4.97685734]
[1728788355804,1.2306,2470.8,2470.7,7.81430585]
[1728788356006,1.2306,2470.8,2470.7,9.32214911]
[1728788358411,1.2306,2470.8,2470.7,9.32217424]
[1728788360209,1.2306,2470.8,2470.7,8.52306958]
[1728788360409,1.2306,2470.8,2470.7,8.01211881]
[1728788360617,1.2306,2470.8,2470.7,8.01188351]
[1728788362011,1.2306,2470.8,2470.7,1.41864582]
[1728788362315,1.2306,2470.8,2470.7,2.54682172]
[1728788362609,1.2306,2470.8,2470.7,3.05308063]
[1728788362811,1.2306,2470.8,2470.7,3.05308137]
[1728788365715,1.2306,2470.8,2470.7,2.34438711]
[1728788365919,1.2306,2470.8,2470.7,2.54689073]
[1728788366123,1.2306,2470.8,2470.7,3.0531498]
[1728788366519,1.2306,2470.8,2470.7,5.17471787]
[1728788369023,1.2306,2470.8,2470.7,8.01257038]
[1728788369421,1.2306,2470.8,2470.7,7.70524774]
[1728788369626,1.2306,2470.8,2470.7,8.01263465]
[1728788370226,1.2306,2470.8,2470.7,8.01292827]
[1728788371424,1.2306,2470.8,2470.7,7.52107386]
[1728788373018,1.2306,2470.8,2470.7,7.19200577]
[1728788373218,1.2306,2470.8,2470.7,7.52107401]
[1728788375022,1.2306,2470.8,2470.7,7.52151769]
[1728788377117,1.2306,2470.8,2470.7,4.6833606]
[1728788378430,1.2306,2470.8,2470.7,5.17525614]
[1728788379821,1.2306,2470.8,2470.7,5.17526069]
[1728788380230,1.2306,2470.8,2470.7,4.54247203]
[1728788380524,1.2306,2470.8,2470.7,5.17529503]
[1728788382634,1.2306,2470.8,2470.7,5.1747892]
[1728788382826,1.2306,2470.8,2470.7,3.75621194]
[1728788383527,1.2306,2470.8,2470.7,5.06621194]
[1728788383827,1.2306,2470.8,2470.7,4.57421252]
[1728788384023,1.2306,2470.8,2470.7,8.83005957]
[1728788384225,1.2306,2470.8,2470.7,9.32180407]
[1728788385828,1.2306,2470.8,2470.7,9.32176902]
[1728788387528,1.2306,2470.8,2470.7,9.32176954]
[1728788390727,1.2306,2470.8,2470.7,9.32158054]
[1728788391121,1.2306,2470.8,2470.7,9.3215802]
[1728788391330,1.2306,2470.8,2470.7,9.5240831]
[1728788391542,1.2306,2470.8,2470.7,9.3215795]
[1728788391922,1.2306,2470.8,2470.7,6.4844975]
[1728788393034,1.2306,2470.8,2470.7,6.48443479]
[1728788393932,1.2306,2470.8,2470.7,5.66365911]
[1728788394136,1.2306,2470.8,2470.7,5.17917454]
[1728788394436,1.2306,2470.8,2470.7,5.99272072]
[1728788395239,0.4164,2470.8,2470.7,6.39752072]
[1728788395432,0.4164,2470.8,2470.7,6.39751647]
[1728788397238,0.4164,2470.8,2470.7,9.23430635]
[1728788398238,0.4164,2470.8,2470.7,8.82950635]
[1728788398438,0.8184,2470.8,2470.7,8.82950635]
[1728788399034,0.8184,2470.8,2470.7,6.70793438]
[1728788399239,0.8184,2470.8,2470.7,6.70792837]
[1728788399441,1.2188,2470.8,2470.7,6.70792837]
[1728788400539,1.2188,2470.8,2470.7,6.70788594]
[1728788401051,1.2188,2470.8,2470.7,8.0095114]
[1728788401443,1.2188,2470.8,2470.7,7.09806575]
[1728788401745,1.2188,2470.8,2470.7,8.41431586]
[1728788401936,0.4164,2470.8,2470.7,8.41431586]
[1728788402646,0.4164,2470.8,2470.7,8.66744026]
[1728788403046,0.4164,2470.8,2470.7,8.26264026]
[1728788403347,0.4164,2470.8,2470.7,8.41431586]
[1728788403547,0.816,2470.8,2470.7,8.41431586]
[1728788403747,0.816,2470.8,2470.7,8.41379175]
[1728788404647,0.4164,2470.8,2470.7,8.41379175]
[1728788404947,3.2078,2470.9,2470.7,16.26518636]
[1728788405139,3.2078,2470.9,2470.8,11.31265074]
[1728788405345,3.2078,2470.9,2470.8,11.38595074]
[1728788407046,3.2078,2470.9,2470.8,8.7400702]
[1728788407243,3.2078,2470.9,2470.8,8.48695613]
[1728788407442,3.2078,2470.9,2470.8,10.60466785]
[1728788408145,3.2078,2470.9,2470.8,9.2298115]
[1728788408343,3.2078,2470.9,2470.8,9.2263566]
[1728788409455,3.2078,2470.9,2470.8,6.39212202]
[1728788409647,3.2078,2470.9,2470.8,9.22581433]
[1728788410649,3.2078,2470.9,2470.8,8.89675181]
[1728788410844,3.2078,2470.9,2470.8,5.98731114]
[1728788411842,3.2078,2470.9,2470.8,6.39209114]
[1728788412237,3.2078,2470.9,2470.8,5.24960901]
[1728788412449,3.2078,2470.9,2470.8,6.89679074]
[1728788412844,3.2078,2470.9,2470.8,6.89672768]
[1728788413046,3.2078,2470.9,2470.8,6.89672453]
[1728788413255,3.2078,2470.9,2470.8,6.89672717]
[1728788413453,3.2078,2470.9,2470.8,6.69424111]
[1728788413750,3.2078,2470.9,2470.8,6.89672215]
[1728788414149,3.2078,2470.9,2470.8,7.1047452]
[1728788414652,3.2078,2470.9,2470.8,9.2207073]
[1728788414850,3.2078,2470.9,2470.8,9.01822626]
[1728788416054,3.2078,2470.9,2470.8,8.71258127]
[1728788416247,3.2078,2470.9,2470.8,8.8916172]
[1728788416447,3.2078,2470.9,2470.8,9.22065721]
[1728788416651,3.2078,2470.9,2470.8,9.30476774]
[1728788416952,3.2078,2470.9,2470.8,5.98392601]
[1728788417152,3.2078,2470.9,2470.8,6.38870601]
[1728788418058,4.0027,2471.1,2470.8,6.38870601]
[1728788418259,4.0027,2471.1,2471.0,2.36758467]
[1728788418451,4.0027,2471.1,2471.0,3.78470196]
[1728788419660,4.0027,2471.1,2471.0,4.31349429]
[1728788419855,4.0027,2471.1,2471.0,4.44004569]
[1728788420552,4.0027,2471.1,2471.0,4.44004818]
[1728788422661,4.0027,2471.1,2471.0,4.43815043]
[1728788423063,4.0027,2471.1,2471.0,4.31159654]
[1728788425067,0.7949,2471.1,2471.0,4.31159654]
[1728788427465,0.7949,2471.1,2471.0,4.3116922]
[1728788429069,0.7949,2471.1,2471.0,2.36736195]
[1728788433778,0.7949,2471.1,2471.0,2.49391262]
[1728788434279,0.7949,2471.1,2471.0,2.36736195]
[1728788434473,0.7949,2471.1,2471.0,2.49391284]
[1728788436182,0.3869,2471.1,2471.0,7.56208207]
[1728788436374,0.3869,2471.1,2471.0,9.67804417]
[1728788436678,0.3869,2471.1,2471.0,10.51414424]
[1728788436881,0.3869,2471.1,2471.0,10.10939424]
[1728788437068,0.3869,2471.1,2471.0,10.51414424]
[1728788437272,0.3869,2471.1,2471.0,7.99343214]
[1728788437473,0.3869,2471.1,2471.0,8.39818214]
[1728788437671,0.3869,2471.1,2471.0,10.63931268]
[1728788437877,0.3869,2471.1,2471.0,10.63930044]
[1728788438070,0.3869,2471.1,2471.0,11.14542793]
[1728788438279,0.3869,2471.1,2471.0,9.94820691]
[1728788438481,0.3869,2471.1,2471.0,6.49248978]
[1728788439078,0.3869,2471.1,2471.0,5.98634191]
[1728788439285,0.3869,2471.1,2471.0,6.18709575]
[1728788439981,0.3869,2471.1,2471.0,6.49235054]
[1728788440283,0.3869,2471.1,2471.0,6.18709575]
[1728788440876,0.3869,2471.1,2471.0,8.30063802]
[1728788441578,0.3869,2471.1,2471.0,8.30065454]
[1728788441780,0.3869,2471.1,2471.0,7.79448772]
[1728788441982,0.3869,2471.1,2471.0,7.79312057]
[1728788442278,0.3869,2471.1,2471.0,8.29928975]
[1728788444083,0.3869,2471.1,2471.0,8.29929004]
[1728788445176,0.3869,2471.1,2471.0,8.29928913]
[1728788446182,0.3869,2471.1,2471.0,8.80700707]
[1728788447083,0.3869,2471.1,2471.0,9.29544762]
[1728788448787,0.3869,2471.1,2471.0,8.17275217]
[1728788449090,0.3869,2471.1,2471.0,9.29544935]
[1728788450582,0.3869,2471.1,2471.0,7.18190708]
[1728788450788,0.3869,2471.1,2471.0,9.29580846]
[1728788450992,0.3869,2471.1,2471.0,9.29585697]
[1728788451683,0.3869,2471.1,2471.0,9.29630581]
[1728788452285,0.3869,2471.1,2471.0,6.46731216]
[1728788452695,0.3869,2471.1,2471.0,6.46731931]
[1728788454480,0.3869,2471.1,2471.0,5.63214594]
[1728788454986,0.3869,2471.1,2471.0,4.83844671]
[1728788455191,0.3869,2471.1,2471.0,5.14373287]
[1728788455997,0.3869,2471.1,2471.0,6.13838847]
[1728788456198,0.3869,2471.1,2471.0,4.83844671]
[1728788456497,0.3869,2471.1,2471.0,4.83841926]
[1728788456693,0.3869,2471.1,2471.0,6.34080454]
[1728788457097,0.3869,2471.1,2471.0,6.46734513]
[1728788458390,0.3869,2471.1,2471.0,5.63214333]
[1728788458589,0.3869,2471.1,2471.0,6.87204113]
[1728788458792,0.3869,2471.1,2471.0,9.29606603]
[1728788459291,0.3869,2471.1,2471.0,7.18211614]
[1728788460591,0.3869,2471.1,2471.0,6.69345703]
[1728788461098,0.3869,2471.1,2471.0,6.36445942]
[1728788461298,0.3869,2471.1,2471.0,6.49099534]
[1728788464489,0.3869,2471.1,2471.0,5.55494585]
[1728788464688,0.3869,2471.1,2471.0,6.49302958]
[1728788464996,0.4065,2471.2,2471.0,6.49302958]
[1728788465189,0.4065,2471.2,2471.1,4.96613705]
[1728788467396,0.4065,2471.2,2471.1,4.43803233]
[1728788468090,0.4065,2471.2,2471.1,4.31149476]
[1728788468292,0.7969,2471.2,2471.1,4.43803229]
[1728788468688,0.7969,2471.2,2471.1,5.24933607]
[1728788469194,0.7969,2471.2,2471.1,5.24845891]
[1728788471594,0.7969,2471.2,2471.1,3.6619461]
[1728788471999,0.7969,2471.2,2471.1,6.46737408]
[1728788472892,0.7969,2471.2,2471.1,9.70107312]
[1728788474300,0.7969,2471.2,2471.1,11.04213645]
[1728788475395,0.7969,2471.2,2471.1,9.91963482]
[1728788475595,0.7969,2471.2,2471.1,10.62819423]
[1728788475797,0.7969,2471.2,2471.1,10.12370092]
[1728788475999,0.7969,2471.2,2471.1,9.74408076]
[1728788476201,0.7969,2471.2,2471.1,10.23260839]
[1728788476396,0.7969,2471.2,2471.1,9.74408076]
[1728788477299,0.7969,2471.2,2471.1,10.23268374]
[1728788478201,0.7969,2471.2,2471.1,9.82795374]
[1728788478597,0.7969,2471.2,2471.1,9.83039331]
[1728788479199,0.7969,2471.2,2471.1,8.99529067]
[1728788479406,0.7969,2471.2,2471.1,9.83040079]
[1728788480403,0.7969,2471.2,2471.1,10.64020435]
[1728788482505,0.7969,2471.2,2471.1,7.99432381]
[1728788483207,0.7969,2471.2,2471.1,7.18452025]
[1728788483406,0.7969,2471.2,2471.1,7.18587549]
[1728788483599,0.7969,2471.2,2471.1,7.99569894]
[1728788486911,0.7969,2471.2,2471.1,5.55686864]
[1728788487212,0.7969,2471.2,2471.1,7.79373128]
[1728788487410,0.7969,2471.2,2471.1,7.99618717]
[1728788488308,0.7969,2471.2,2471.1,7.99788089]
[1728788489513,0.7969,2471.2,2471.1,10.64376143]
[1728788490708,0.7969,2471.2,2471.1,7.0027186]
[1728788490909,0.7969,2471.2,2471.1,10.15473544]
[1728788491102,0.7969,2471.2,2471.1,9.34491186]
[1728788493002,0.7969,2471.2,2471.1,5.0963495]
[1728788493205,0.7969,2471.2,2471.1,9.34565519]
[1728788495109,0.7969,2471.2,2471.1,5.38977465]
[1728788495314,2.1069,2471.2,2471.1,5.18731876]
[1728788495614,2.1069,2471.2,2471.1,3.96743812]
[1728788495807,5.71942,2471.2,2471.1,2.4968113]
[1728788496709,9.76582,2471.2,2471.1,2.4968113]
[1728788497417,9.3611,2471.2,2471.1,1.05950834]
[1728788499413,9.3611,2471.2,2471.0,2.36950834]
[1728788504518,9.3611,2471.2,2471.1,1.05950834]
[1728788507720,9.76582,2471.2,2471.1,1.05950834]
[1728788507918,0.40473,2471.1,2470.9,1.05950834]
[1728788508123,1.7149,2471.0,2470.9,1.31]
[1728788508332,1.7149,2471.0,2470.9,2.36900384]
[1728788510618,1.7149,2471.0,2470.9,1.05900384]
[1728788511325,1.7149,2471.0,2470.8,2.36900384]
[1728788511531,0.7804,2470.9,2470.8,2.36900384]
[1728788516133,0.7804,2470.9,2470.8,1.31]
[1728788516523,6.1376,2470.9,2470.7,1.05900384]
[1728788516724,2.0904,2470.9,2470.7,2.36900384]
[1728788518734,2.0904,2470.9,2470.8,1.31]
[1728788518735,0.7804,2470.9,2470.8,1.31]
[1728788518927,2.0904,2470.9,2470.8,1.31]
[1728788519130,6.1376,2470.9,2470.8,1.31]
[1728788520831,6.1618,2470.9,2470.8,1.31]
[1728788526532,4.8518,2470.9,2470.8,1.31]
[1728788527038,0.8046,2470.9,2470.8,1.31]
[1728788527237,0.8046,2470.9,2470.8,2.36900384]
[1728788528041,0.8046,2470.9,2470.8,1.31]
[1728788528240,0.8046,2470.9,2470.8,2.36900384]
[1728788529244,0.0242,2470.9,2470.8,2.36900384]
[1728788529439,0.0242,2470.9,2470.8,2.75240384]
[1728788534242,0.0242,2470.9,2470.8,4.16457321]
[1728788534444,0.0242,2470.9,2470.8,2.75240384]
[1728788534642,0.0242,2470.9,2470.8,4.16470738]
[1728788534843,0.0242,2470.9,2470.8,4.16470292]
[1728788536245,0.0242,2470.9,2470.8,3.10569908]
[1728788536451,0.0242,2470.9,2470.8,4.69524022]
[1728788538048,0.0242,2470.9,2470.8,3.41075349]
[1728788538444,0.0242,2470.9,2470.8,6.16265074]
[1728788538961,0.4176,2471.0,2470.8,6.16265074]
[1728788539156,0.4176,2471.0,2470.9,4.61508164]
[1728788539446,0.4176,2471.0,2470.9,3.62138256]
[1728788539648,0.4176,2471.0,2470.9,5.03441713]
[1728788540353,0.4176,2471.0,2470.9,3.44668898]
[1728788541152,0.4176,2471.0,2470.9,3.14163457]
[1728788541453,0.4176,2471.0,2470.9,3.44679831]
[1728788541653,0.4176,2471.0,2470.9,4.07955667]
[1728788542551,0.4176,2471.0,2470.9,5.66809235]
[1728788543354,0.4176,2471.0,2470.9,5.66809304]
[1728788545052,0.4176,2471.0,2470.9,4.73017025]
[1728788545252,0.4176,2471.0,2470.9,5.66815289]
[1728788546648,0.4176,2471.0,2470.9,5.13872723]
[1728788546845,0.4176,2471.0,2470.9,5.6681704]
[1728788548858,0.4176,2471.0,2470.9,5.66817521]
[1728788549157,0.4176,2471.0,2470.9,5.66867849]
[1728788549655,0.4176,2471.0,2470.9,4.08014281]
[1728788550462,0.4176,2471.0,2470.9,3.57393668]
[1728788551159,0.4176,2471.0,2470.9,3.44738155]
[1728788551351,0.4176,2471.0,2470.9,5.56650767]
[1728788551553,0.4176,2471.0,2470.9,3.14213785]
[1728788552255,0.4176,2471.0,2470.9,5.26126397]
[1728788553959,0.4176,2471.0,2470.9,5.26127344]
[1728788555458,0.4176,2471.0,2470.9,3.14214732]
[1728788555654,0.4176,2471.0,2470.9,5.26127344]
[1728788556053,0.4176,2471.0,2470.9,3.14214732]
[1728788556657,0.4176,2471.0,2470.9,4.73074423]
[1728788558257,0.4176,2471.0,2470.9,4.85729564]
[1728788558459,0.4176,2471.0,2470.9,5.16251953]
[1728788558659,0.4176,2471.0,2470.9,5.66872502]
[1728788558855,0.4176,2471.0,2470.9,5.36340715]
[1728788559162,0.4176,2471.0,2470.9,5.66863163]
[1728788559559,0.4176,2471.0,2470.9,5.16242614]
[1728788559856,0.4176,2471.0,2470.9,5.66863163]
[1728788560362,0.4176,2471.0,2470.9,5.25003163]
[1728788561861,0.4176,2471.0,2470.9,4.74382614]
[1728788562163,0.4176,2471.0,2470.9,5.25003018]
[1728788563764,0.4176,2471.0,2470.9,5.25002341]
[1728788564464,0.4176,2471.0,2470.9,5.25002291]
[1728788564652,0.4176,2471.0,2470.9,5.78055212]
[1728788565551,0.4176,2471.0,2470.9,4.9691236]
[1728788566360,0.4176,2471.0,2470.9,4.84257219]
[1728788567465,0.4176,2471.0,2470.9,5.14780554]
[1728788567666,0.4176,2471.0,2470.9,4.84257219]
[1728788567863,0.4176,2471.0,2470.9,5.14780331]
[1728788568664,0.4176,2471.0,2470.9,5.14792527]
[1728788570264,0.4176,2471.0,2470.9,5.27447653]
[1728788571762,0.4176,2471.0,2470.9,3.15535041]
[1728788572364,0.4176,2471.0,2470.9,3.66155577]
[1728788574259,0.4176,2471.0,2470.9,3.66161548]
[1728788574467,0.4176,2471.0,2470.9,3.66161559]
[1728788575272,0.4176,2471.0,2470.9,4.15014785]
[1728788577978,0.4176,2471.0,2470.9,3.21214627]
[1728788578180,0.4176,2471.0,2470.9,4.15024248]
[1728788578475,0.4176,2471.0,2470.9,4.15081314]
[1728788579078,0.4176,2471.0,2470.9,6.26993926]
[1728788579780,0.4176,2471.0,2470.9,9.0984318]
[1728788580574,0.4176,2471.0,2470.9,8.60985356]
[1728788580969,0.4176,2471.0,2470.9,7.97718405]
[1728788581168,0.4176,2471.0,2470.9,8.60994112]
[1728788581779,0.4176,2471.0,2470.9,8.6111242]
[1728788582078,0.4176,2471.0,2470.9,6.49199808]
[1728788582278,0.4176,2471.0,2470.9,8.61197286]
[1728788582582,0.4176,2471.0,2470.9,6.49199808]
[1728788584095,0.4176,2471.0,2470.9,6.18657138]
[1728788584282,0.4176,2471.0,2470.9,6.36553836]
[1728788584788,0.4176,2471.0,2470.9,6.49209007]
[1728788586593,0.4176,2471.0,2470.9,6.49323521]
[1728788586785,0.4176,2471.0,2470.9,8.61362711]
[1728788587892,0.4176,2471.0,2470.9,8.61365966]
[1728788588081,0.4176,2471.0,2470.9,8.18155701]
[1728788588287,0.4176,2471.0,2470.9,7.80190297]
[1728788588490,0.4176,2471.0,2470.9,8.5105921]
[1728788588792,0.4176,2471.0,2470.9,10.11515383]
[1728788590183,0.4176,2471.0,2470.9,9.30522304]
[1728788591387,0.4176,2471.0,2470.9,9.30747129]
[1728788591589,0.4176,2471.0,2470.9,9.30747168]
[1728788591991,0.4176,2471.0,2470.9,10.11740228]
[1728788594891,0.4176,2471.0,2470.9,7.99701038]